fUSD/lending_fUSD_20250304
["ID","MTS","AMOUNT","RATE_DAILY","PERIOD"]
[355421589,1741131032475,-150.0,0.00012074,2]
[355421590,1741131032486,-485.83,0.0001208,2]
[355421591,1741131032498,-150.0,0.0001211,2]
[355421592,1741131032508,-150.0,0.00012126,2]
[355421593,1741131032519,-485.83,0.00012129,2]
[355421594,1741131032529,-156.175,0.00012129,2]
[355421595,1741131032540,-156.175,0.00012129,2]
[355421596,1741131032549,-156.175,0.00012129,2]
[355421597,1741131032558,-485.83,0.00012179,2]
[355421598,1741131032570,-485.83,0.00012228,2]
[355421599,1741131032580,-485.83,0.00012277,2]
[355421600,1741131032592,-150.0,0.00012278,2]
[355421601,1741131032602,-150.0,0.00012323,2]
[355421602,1741131032612,-550.0,0.00012323,2]
[355421603,1741131032622,-325.85,0.00012324,2]
[355421604,1741131032634,-485.83,0.00012327,2]
[355421605,1741131032646,-550.0,0.00012367,2]
[355421606,1741131032659,-150.0,0.00012372,2]
[355421607,1741131032670,-485.83,0.00012376,2]
[355421608,1741131032690,-6649.0237906,0.000124,2]
[355421609,1741131032711,-150.0,0.00012409,2]
[355421610,1741131032728,-485.83,0.00012426,2]
[355421611,1741131032739,-6649.02379058,0.00012456,2]
[355421612,1741131032750,-150.0,0.00012469,2]
[355421613,1741131032761,-485.83,0.00012475,2]
[355421614,1741131032772,-500.0,0.00012499,2]
[355421615,1741131032782,-500.0,0.00012499,2]
[355421616,1741131032794,-500.0,0.00012499,2]
[355421617,1741131032804,-635.31586203,0.00012499,2]
[355421618,1741131032815,-4612.29,0.00012499,2]
[355421619,1741131032826,-3506.42,0.00012499,2]
[355421620,1741131032837,-8066.04,0.00012499,2]
[355421621,1741131032846,-1988.27880752,0.00012499,2]
[355421622,1741131032860,-1328.54119248,0.00012499,2]
[355421623,1741131032869,-30.37782133,0.00012499,2]
[355421624,1741131032925,-598.21556033,0.00012499,2]
[355421625,1741131032980,-1799.70661834,0.00012499,2]
[355421626,1741131032989,-114.59001827,0.00012499,2]
[355421627,1741131033002,-2543.445,0.00012499,2]
[355422083,1741131037793,-150.0,0.00011728,2]
[355422085,1741131037803,-150.0,0.00011746,2]
[355422087,1741131037813,-150.0,0.0001175,2]
[355422089,1741131037823,-150.0,0.00012199,2]
[355422091,1741131037832,-204.65096548,0.0001249,2]
[355422093,1741131037842,-3115.02498173,0.00012499,2]
[355422095,1741131037851,-500.0,0.00012499,2]
[355422097,1741131037861,-577.7,0.00012499,2]
[355422099,1741131037870,-5626.55,0.00012499,2]
[355422101,1741131037880,-4072.09,0.00012499,2]
[355422103,1741131037889,-500.0,0.00012499,2]
[355422105,1741131037899,-1853.06,0.00012499,2]
[355422107,1741131037908,-1701.78,0.00012499,2]
[355422109,1741131037918,-3153.73,0.00012499,2]
[355422111,1741131037927,-5057.24,0.00012499,2]
[355422113,1741131037937,-7803.82680787,0.00012499,2]
[355422117,1741131037978,-2754.89319213,0.00012499,2]
[355422119,1741131037988,-5385.94,0.00012499,2]
[355422121,1741131037997,-3113.49,0.00012499,2]
[355422123,1741131038007,-3515.28,0.00012499,2]
[355422125,1741131038016,-1748.04,0.00012499,2]
[355422126,1741131038025,-500.0,0.00012499,2]
[355422128,1741131038034,-500.0,0.00012499,2]
[355422130,1741131038043,-7009.96,0.00012499,2]
[355422132,1741131038053,-500.0,0.00012499,2]
[355422134,1741131038063,-500.0,0.00012499,2]
[355422136,1741131038073,-500.0,0.00012499,2]
[355422138,1741131038083,-500.0,0.00012499,2]
[355422140,1741131038092,-1030.49,0.00012499,2]
[355422142,1741131038102,-500.0,0.00012499,2]
[355422144,1741131038112,-6039.08,0.00012499,2]
[355422146,1741131038122,-500.0,0.00012499,2]
[355422148,1741131038131,-511.71019688,0.00012499,2]
[355422150,1741131038141,-505.67428297,0.00012499,2]
[355422152,1741131038151,-1744.98,0.00012499,2]
[355422154,1741131038161,-3109.1,0.00012499,2]
[355422156,1741131038170,-500.0,0.00012499,2]
[355422158,1741131038179,-34990.61487667,0.000125,2]
[355422712,1741131046075,-150.0,0.00011723,2]
[355422714,1741131046084,-150.0,0.00011751,2]
[355422716,1741131046094,-500.0,0.00012499,2]
[355422718,1741131046103,-2855.54,0.00012499,2]
[355422720,1741131046112,-3489.56,0.00012499,2]
[355422722,1741131046122,-56.80247,0.000125,2]
[355422724,1741131046133,-10471.784483,0.000125,2]
[355422727,1741131046150,-602.94,0.000125,2]
[355422729,1741131046160,-641.56,0.000125,2]
[355422731,1741131046171,-544.47,0.000125,2]
[355423618,1741131272923,483.75,9.295e-05,2]
[355423619,1741131534792,150.0,9.226e-05,2]
[355423620,1741131594494,150.0,9.709e-05,2]
[355423621,1741131594760,150.0,9.996e-05,2]
[355423622,1741131594832,150.0,9.683e-05,2]
[355423623,1741131595023,150.0,8.987e-05,2]
[355423624,1741131595064,150.0,9.466e-05,2]
[355423625,1741131595106,150.0,9.701e-05,2]
[355423626,1741131595140,51.49448368,8.782e-05,2]
[355423627,1741131595164,98.50551632,8.782e-05,2]
[355423628,1741131595229,150.0,9.119e-05,2]
[355423629,1741131654484,150.0,9.711e-05,2]
[355423630,1741131654549,150.0,0.0001016,2]
[355423631,1741131654985,150.0,9.602e-05,2]
[355423632,1741131655093,150.0,9.052e-05,2]
[355423633,1741131655197,150.0,9.435e-05,2]
[355423634,1741131655239,150.0,8.688e-05,2]
[355423635,1741131655434,150.0,8.87e-05,2]
[355423636,1741132020383,1000.0,9.216e-05,2]
[355423637,1741132020440,1000.0,8.937e-05,2]
[355423638,1741132020546,1000.0,8.396e-05,2]
[355423639,1741132020600,1000.0,0.00010052,2]
[355423640,1741132020693,1000.0,9.663e-05,2]
[355423641,1741132020742,1000.0,8.932e-05,2]
[355423642,1741132020775,1000.0,9.818e-05,2]
[355423643,1741132231936,-150.0,0.00010382,2]
[355423644,1741132231946,-150.0,0.00010417,2]
[355423645,1741132231955,-150.0,0.00010421,2]
[355423646,1741132231965,-1000.0,0.00010463,2]
[355423647,1741132231974,-758.97184433,0.00010836,2]
[355423648,1741132232292,-241.02815567,0.00010836,2]
[355423649,1741132232303,-165.48,0.00010942,2]
[355423650,1741132232312,-550.0,0.00011,2]
[355423651,1741132232322,-284.45062433,0.00011111,2]
[355423652,1741132232336,-447.46047696,0.00011111,2]
[355423741,1741132240102,-268.08889871,0.00011111,2]
[355423742,1741132240112,-200.0,0.00011264,2]
[355423743,1741132240121,-150.0,0.00011292,2]
[355423744,1741132240130,-1500.0,0.0001131,2]
[355423745,1741132240140,-150.0,0.00011331,2]
[355423746,1741132240149,-150.0,0.00011343,2]
[355423747,1741132240158,-1000.0,0.00011373,2]
[355423748,1741132240167,-150.0,0.00011381,2]
[355423749,1741132240176,-150.0,0.00011457,2]
[355423750,1741132240185,-1000.0,0.0001154,2]
[355423751,1741132240194,-483.75,0.00011558,2]
[355423752,1741132240203,-150.0,0.00011623,2]
[355423753,1741132240213,-150.0,0.00011628,2]
[355423754,1741132240223,-150.0,0.00011688,2]
[355423755,1741132240233,-150.0,0.00011726,2]
[355423756,1741132240242,-150.0,0.00011729,2]
[355423757,1741132240252,-150.0,0.00011743,2]
[355423758,1741132240262,-150.0,0.00011793,2]
[355423759,1741132240271,-150.0,0.00011867,2]
[355423760,1741132240281,-150.0,0.00011906,2]
[355423761,1741132240290,-150.0,0.00011991,2]
[355423762,1741132240300,-166.66,0.0001202,2]
[355423763,1741132240309,-150.0,0.00012021,2]
[355423764,1741132240319,-150.0,0.00012027,2]
[355423765,1741132240328,-150.0,0.00012062,2]
[355423766,1741132240338,-440.21,0.00012079,2]
[355423767,1741132240348,-550.0,0.00012106,2]
[355423768,1741132240358,-550.0,0.00012106,2]
[355423769,1741132240367,-150.0,0.00012173,2]
[355423770,1741132240377,-1000.0,0.00012191,2]
[355423771,1741132240387,-250.0,0.00012219,2]
[355423772,1741132240397,-150.0,0.00012242,2]
[355423773,1741132240406,-5763.9557,0.00012299,2]
[355423774,1741132240417,-267.3227,0.00012299,2]
[355423775,1741132240427,-720.14076,0.000123,2]
[355423776,1741132240436,-150.0,0.00012338,2]
[355423777,1741132240445,-914.92,0.00012396,2]
[355423778,1741132240455,-165.40551128,0.00012396,2]
[355423779,1741132240465,-5413.22820448,0.00012397,2]
[355423780,1741132240474,-8698.8689395,0.00012399,2]
[355423781,1741132240485,-5663.00549854,0.00012399,2]
[355423782,1741132240496,-987.58941939,0.00012399,2]
[355423783,1741132240507,-2511.50756966,0.00012399,2]
[355423784,1741132240518,-7901.67657273,0.00012399,2]
[355423785,1741132240529,-328.38878323,0.00012399,2]
[355423786,1741132240540,-1034.6788,0.00012399,2]
[355423788,1741132240600,-1025.06710056,0.00012399,2]
[355423801,1741132240684,-53234.49761639,0.00012399,2]
[355423803,1741132240694,-169.16239588,0.00012399,2]
[355423806,1741132240704,-229.7288,0.000124,2]
[355423808,1741132240714,-190.0706,0.000124,2]
[355423810,1741132240723,-2190.82976744,0.000124,2]
[355423812,1741132240732,-166.66,0.00012417,2]
[355423814,1741132240743,-5413.22820441,0.00012428,2]
[355423816,1741132240752,-5413.22820441,0.00012458,2]
[355423821,1741132241040,-150.0,0.00012468,2]
[355423822,1741132241051,-581.41119098,0.00012473,2]
[355423823,1741132241061,-150.0,0.00012484,2]
[355423824,1741132241071,-5413.22820441,0.00012489,2]
[355423825,1741132241080,-987.56,0.00012495,2]
[355423826,1741132241093,-1675.2,0.00012495,2]
[355423827,1741132241103,-2736.56,0.00012495,2]
[355423828,1741132241113,-500.0,0.00012495,2]
[355423829,1741132241123,-2295.11,0.00012495,2]
[355423830,1741132241133,-268184.99214412,0.00012495,2]
[355423831,1741132241143,-500.0,0.00012496,2]
[355423832,1741132241152,-500.0,0.00012496,2]
[355423833,1741132241162,-500.0,0.00012496,2]
[355423834,1741132241171,-500.0,0.00012496,2]
[355423835,1741132241181,-500.0,0.00012496,2]
[355423836,1741132241191,-1255.98,0.00012496,2]
[355423837,1741132241201,-500.0,0.00012496,2]
[355423838,1741132241210,-500.0,0.00012496,2]
[355423839,1741132241220,-500.0,0.00012496,2]
[355423840,1741132241230,-509.14073422,0.00012496,2]
[355423841,1741132241239,-500.0,0.00012496,2]
[355423842,1741132241249,-500.0,0.00012496,2]
[355423843,1741132241259,-504.94518835,0.00012496,2]
[355423844,1741132241268,-789.75,0.00012496,2]
[355423845,1741132241278,-500.0,0.00012496,2]
[355423846,1741132241287,-500.0,0.00012496,2]
[355423847,1741132241296,-284.56063734,0.00012496,2]
[355423848,1741132241306,-515.99402156,0.00012496,2]
[355423849,1741132241315,-500.0,0.00012496,2]
[355423850,1741132241324,-500.0,0.00012496,2]
[355423851,1741132241333,-500.0,0.00012496,2]
[355423852,1741132241345,-500.0,0.00012496,2]
[355423853,1741132241355,-184.35544728,0.00012496,2]
[355423854,1741132241364,-500.0,0.00012496,2]
[355423855,1741132241374,-500.0,0.00012496,2]
[355423856,1741132241383,-500.0,0.00012496,2]
[355423857,1741132241392,-1085.94,0.00012496,2]
[355423858,1741132241401,-502.82033388,0.00012496,2]
[355423859,1741132241411,-1148.1,0.00012496,2]
[355423860,1741132241421,-960.48,0.00012496,2]
[355423861,1741132241430,-500.0,0.00012496,2]
[355423862,1741132241439,-589.05,0.00012496,2]
[355423863,1741132241449,-503.35403899,0.00012496,2]
[355423864,1741132241459,-500.0,0.00012496,2]
[355423865,1741132241468,-1326.72,0.00012496,2]
[355423866,1741132241478,-14905.97,0.00012496,2]
[355423867,1741132241488,-500.0,0.00012496,2]
[355423868,1741132241497,-500.0,0.00012496,2]
[355423869,1741132241506,-627.37,0.00012496,2]
[355423870,1741132241515,-500.0,0.00012496,2]
[355423871,1741132241525,-500.0,0.00012496,2]
[355423872,1741132241535,-1595.1,0.00012496,2]
[355423873,1741132241544,-500.0,0.00012496,2]
[355423874,1741132241553,-500.0,0.00012496,2]
[355423875,1741132241563,-500.0,0.00012496,2]
[355423876,1741132241572,-500.0,0.00012496,2]
[355423877,1741132241581,-500.0,0.00012496,2]
[355423878,1741132241592,-500.0,0.00012496,2]
[355423879,1741132241602,-500.0,0.00012496,2]
[355423880,1741132241612,-2025.64,0.00012496,2]
[355423881,1741132241622,-3715.98,0.00012496,2]
[355423882,1741132241633,-500.0,0.00012496,2]
[355423883,1741132241642,-500.0,0.00012496,2]
[355423884,1741132241652,-183.9285474,0.00012496,2]
[355423885,1741132241662,-500.0,0.00012496,2]
[355423886,1741132241672,-500.0,0.00012496,2]
[355423887,1741132241682,-1525.77,0.00012496,2]
[355423888,1741132241691,-501.96995523,0.00012496,2]
[355423889,1741132241700,-1212.02,0.00012496,2]
[355423890,1741132241711,-500.0,0.00012496,2]
[355423891,1741132241721,-3679.12,0.00012496,2]
[355423892,1741132241730,-500.0,0.00012496,2]
[355423893,1741132241740,-4573.38,0.00012496,2]
[355423894,1741132241750,-500.0,0.00012496,2]
[355423895,1741132241760,-500.0,0.00012496,2]
[355423896,1741132241769,-500.0,0.00012496,2]
[355423897,1741132241779,-3000.46,0.00012496,2]
[355423898,1741132241788,-500.0,0.00012496,2]
[355423899,1741132241797,-500.0,0.00012496,2]
[355423900,1741132241807,-500.0,0.00012496,2]
[355423901,1741132241816,-2249.69,0.00012496,2]
[355423902,1741132241826,-500.0,0.00012496,2]
[355423903,1741132241835,-5015.47,0.00012496,2]
[355423904,1741132241850,-500.0,0.00012496,2]
[355423905,1741132241860,-500.0,0.00012496,2]
[355423906,1741132241869,-505.39054972,0.00012496,2]
[355423907,1741132241879,-500.0,0.00012496,2]
[355423908,1741132241889,-500.0,0.00012496,2]
[355423909,1741132241899,-500.0,0.00012496,2]
[355423910,1741132241908,-1136.66,0.00012496,2]
[355423911,1741132241917,-500.0,0.00012496,2]
[355423912,1741132241927,-500.0,0.00012496,2]
[355423913,1741132241936,-4242.57,0.00012496,2]
[355423914,1741132241945,-500.0,0.00012496,2]
[355423915,1741132241954,-500.0,0.00012496,2]
[355423916,1741132241964,-500.0,0.00012496,2]
[355423917,1741132241974,-500.0,0.00012496,2]
[355423918,1741132241983,-4420.11,0.00012496,2]
[355423919,1741132241992,-13179.54,0.00012496,2]
[355423920,1741132242001,-500.0,0.00012496,2]
[355423921,1741132242010,-500.0,0.00012496,2]
[355423922,1741132242019,-500.0,0.00012496,2]
[355423923,1741132242028,-6033.79504219,0.00012496,2]
[355423924,1741132242042,-1696.15495781,0.00012496,2]
[355423925,1741132242051,-5025.02,0.00012496,2]
[355423926,1741132242060,-3178.62,0.00012496,2]
[355423927,1741132242069,-500.0,0.00012496,2]
[355423928,1741132242079,-652.21,0.00012496,2]
[355423929,1741132242088,-500.0,0.00012496,2]
[355423930,1741132242097,-500.0,0.00012496,2]
[355423931,1741132242107,-894.04,0.00012496,2]
[355423932,1741132242116,-255.86487678,0.00012496,2]
[355423933,1741132242127,-2844.00512322,0.00012496,2]
[355423934,1741132242137,-306.10880495,0.00012496,2]
[355423935,1741132242148,-518.72365054,0.00012496,2]
[355423936,1741132242160,-3168.33754451,0.00012496,2]
[355423937,1741132242170,-197.12042372,0.00012496,2]
[355423938,1741132242182,-415.405,0.00012496,2]
[355423950,1741132243091,-150.0,0.0001193,2]
[355423951,1741132243101,-150.0,0.00011957,2]
[355423952,1741132243111,-150.0,0.00012008,2]
[355423953,1741132243120,-150.0,0.00012103,2]
[355423954,1741132243130,-150.0,0.00012194,2]
[355423955,1741132243140,-60.44369998,0.00012333,2]
[355423956,1741132243151,-89.55630002,0.00012333,2]
[355423957,1741132243160,-150.0,0.0001238,2]
[355423958,1741132243170,-150.0,0.00012476,2]
[355423959,1741132243179,-150.0,0.00012493,2]
[355423960,1741132243190,-1714.59457628,0.00012496,2]
[355423961,1741132243199,-500.0,0.00012496,2]
[355423962,1741132243209,-500.0,0.00012496,2]
[355423963,1741132243219,-8428.93,0.00012496,2]
[355423964,1741132243229,-500.0,0.00012496,2]
[355423965,1741132243238,-5532.51,0.00012496,2]
[355423966,1741132243247,-500.0,0.00012496,2]
[355423967,1741132243256,-420.15275367,0.00012496,2]
[355423968,1741132243268,-79.84724633,0.00012496,2]
[355423969,1741132243278,-500.0,0.00012496,2]
[355423970,1741132243288,-500.0,0.00012496,2]
[355423971,1741132243299,-553.62,0.00012496,2]
[355423972,1741132243309,-5881.66,0.00012496,2]
[355423973,1741132243319,-500.0,0.00012496,2]
[355423974,1741132243329,-1010.04,0.00012496,2]
[355423975,1741132243340,-2426.71,0.00012496,2]
[355423976,1741132243350,-500.0,0.00012496,2]
[355423977,1741132243359,-500.0,0.00012496,2]
[355423978,1741132243369,-500.0,0.00012496,2]
[355423979,1741132243379,-500.0,0.00012496,2]
[355423980,1741132243388,-9186.85,0.00012496,2]
[355423981,1741132243397,-5392.11,0.00012496,2]
[355423982,1741132243407,-500.0,0.00012496,2]
[355423983,1741132243416,-1626.0,0.00012496,2]
[355423984,1741132243426,-500.0,0.00012496,2]
[355423985,1741132243435,-500.0,0.00012496,2]
[355423986,1741132243445,-11626.53,0.00012496,2]
[355423987,1741132243454,-500.0,0.00012496,2]
[355423988,1741132243464,-1229.43,0.00012496,2]
[355423989,1741132243473,-512.52408548,0.00012496,2]
[355423991,1741132243482,-500.0,0.00012496,2]
[355423993,1741132243492,-500.0,0.00012496,2]
[355423995,1741132243501,-500.0,0.00012496,2]
[355423996,1741132243511,-3022.33,0.00012496,2]
[355423998,1741132243520,-1630.87,0.00012496,2]
[355423999,1741132243529,-509.9098263,0.00012496,2]
[355424000,1741132243538,-500.0,0.00012496,2]
[355424001,1741132243548,-500.0,0.00012496,2]
[355424002,1741132243557,-10118.78,0.00012496,2]
[355424004,1741132243567,-500.0,0.00012496,2]
[355424005,1741132243576,-6532.27,0.00012496,2]
[355424006,1741132243586,-500.0,0.00012496,2]
[355424007,1741132243595,-793.66,0.00012496,2]
[355424008,1741132243605,-500.0,0.00012496,2]
[355424009,1741132243614,-500.0,0.00012496,2]
[355424010,1741132243623,-5161.53,0.00012496,2]
[355424011,1741132243632,-21131.52,0.00012496,2]
[355424012,1741132243642,-500.0,0.00012496,2]
[355424013,1741132243651,-500.0,0.00012496,2]
[355424014,1741132243660,-500.0,0.00012496,2]
[355424015,1741132243670,-500.0,0.00012496,2]
[355424016,1741132243679,-504.28840048,0.00012496,2]
[355424017,1741132243689,-4735.9,0.00012496,2]
[355424018,1741132243698,-668.18,0.00012496,2]
[355424019,1741132243708,-3368.81,0.00012496,2]
[355424020,1741132243717,-540.64,0.00012496,2]
[355424021,1741132243726,-2983.76,0.00012496,2]
[355424022,1741132243736,-500.0,0.00012496,2]
[355424023,1741132243746,-569.42755619,0.00012496,2]
[355424024,1741132243756,-512.33565434,0.00012496,2]
[355424025,1741132243765,-6717.87,0.00012496,2]
[355424026,1741132243774,-500.0,0.00012496,2]
[355424027,1741132243784,-763.03,0.00012496,2]
[355424028,1741132243793,-500.0,0.00012496,2]
[355424029,1741132243802,-500.0,0.00012496,2]
[355424030,1741132243812,-5787.45,0.00012496,2]
[355424031,1741132243821,-500.0,0.00012496,2]
[355424032,1741132243831,-500.0,0.00012496,2]
[355424033,1741132243843,-500.0,0.00012496,2]
[355424034,1741132243854,-1921.56,0.00012496,2]
[355424035,1741132243863,-534.30643196,0.00012496,2]
[355424036,1741132243873,-2979.55,0.00012496,2]
[355424037,1741132243883,-500.0,0.00012496,2]
[355424038,1741132243893,-500.0,0.00012496,2]
[355424039,1741132243902,-67.29576782,0.00012496,2]
[355424040,1741132243915,-1284.71423218,0.00012496,2]
[355424041,1741132243924,-500.0,0.00012496,2]
[355424042,1741132243934,-500.0,0.00012496,2]
[355424043,1741132243944,-3173.45,0.00012496,2]
[355424044,1741132243954,-551.23,0.00012496,2]
[355424045,1741132243963,-4081.38,0.00012496,2]
[355424046,1741132243972,-3344.16,0.00012496,2]
[355424047,1741132243982,-500.0,0.00012496,2]
[355424048,1741132243991,-500.0,0.00012496,2]
[355424049,1741132244001,-494.72110342,0.00012496,2]
[355424050,1741132244010,-154.36432232,0.00012496,2]
[355424051,1741132244022,-345.63567768,0.00012496,2]
[355424052,1741132244031,-87.66401241,0.00012496,2]
[355424055,1741132245876,-412.33598759,0.00012496,2]
[355424056,1741132245887,-500.0,0.00012496,2]
[355424057,1741132245896,-500.0,0.00012497,2]
[355424058,1741132245905,-500.0,0.00012497,2]
[355424059,1741132245915,-500.0,0.00012497,2]
[355424060,1741132245925,-501.33622084,0.00012497,2]
[355424061,1741132245934,-500.0,0.00012497,2]
[355424062,1741132245943,-500.0,0.00012497,2]
[355424063,1741132245952,-500.0,0.00012497,2]
[355424064,1741132245962,-500.0,0.00012497,2]
[355424065,1741132245972,-500.0,0.00012497,2]
[355424066,1741132245981,-500.0,0.00012497,2]
[355424067,1741132245991,-139.32938532,0.00012497,2]
[355424068,1741132246003,-360.67061468,0.00012497,2]
[355424069,1741132246012,-500.0,0.00012497,2]
[355424070,1741132246022,-303.09438032,0.00012497,2]
[355424071,1741132246033,-966.58561968,0.00012497,2]
[355424072,1741132246043,-500.0,0.00012497,2]
[355424073,1741132246052,-523.07,0.00012497,2]
[355424074,1741132246062,-514.52404178,0.00012497,2]
[355424075,1741132246071,-508.94319562,0.00012497,2]
[355424076,1741132246080,-507.21807176,0.00012497,2]
[355424077,1741132246091,-597.98,0.00012497,2]
[355424078,1741132246100,-271.67907116,0.00012497,2]
[355424079,1741132246143,-228.32092884,0.00012497,2]
[355424080,1741132246152,-502.3342575,0.00012497,2]
[355424081,1741132246162,-1011.0,0.00012497,2]
[355424082,1741132246172,-541.10748351,0.00012497,2]
[355424083,1741132246181,-517.32332713,0.00012497,2]
[355424084,1741132246191,-500.0,0.00012497,2]
[355424085,1741132246200,-500.0,0.00012497,2]
[355424086,1741132246210,-2344.94,0.00012497,2]
[355424087,1741132246219,-500.0,0.00012497,2]
[355424088,1741132246228,-500.0,0.00012497,2]
[355424089,1741132246237,-1562.77,0.00012497,2]
[355424090,1741132246247,-500.0,0.00012497,2]
[355424091,1741132246257,-2238.96,0.00012497,2]
[355424092,1741132246266,-500.0,0.00012497,2]
[355424093,1741132246276,-500.0,0.00012497,2]
[355424094,1741132246286,-524.58973041,0.00012497,2]
[355424095,1741132246296,-456.94532954,0.00012497,2]
[355424096,1741132246306,-500.0,0.00012497,2]
[355424097,1741132246316,-1256.14,0.00012497,2]
[355424098,1741132246326,-193.14766913,0.00012497,2]
[355424099,1741132246336,-291.69871951,0.00012497,2]
[355424100,1741132246345,-500.0,0.00012497,2]
[355424101,1741132246355,-538.4945918,0.00012497,2]
[355424102,1741132246365,-500.0,0.00012497,2]
[355424103,1741132246374,-503.27468534,0.00012497,2]
[355424104,1741132246383,-500.0,0.00012497,2]
[355424105,1741132246393,-1200.11,0.00012497,2]
[355424106,1741132246402,-500.0,0.00012497,2]
[355424107,1741132246412,-500.0,0.00012497,2]
[355424108,1741132246421,-1036.1,0.00012497,2]
[355424109,1741132246431,-500.0,0.00012497,2]
[355424110,1741132246440,-510.8711408,0.00012497,2]
[355424111,1741132246449,-506.04886768,0.00012497,2]
[355424112,1741132246459,-500.0,0.00012497,2]
[355424113,1741132246468,-1288.71,0.00012497,2]
[355424114,1741132246478,-500.0,0.00012497,2]
[355424116,1741132246487,-517.441036,0.00012497,2]
[355424118,1741132246496,-500.0,0.00012497,2]
[355424119,1741132246506,-500.0,0.00012497,2]
[355424120,1741132246515,-500.0,0.00012497,2]
[355424121,1741132246524,-549.61104828,0.00012497,2]
[355424122,1741132246533,-501.62146794,0.00012497,2]
[355424123,1741132246542,-529.24305732,0.00012497,2]
[355424124,1741132246551,-500.0,0.00012497,2]
[355424125,1741132246560,-409.43932996,0.00012497,2]
[355424126,1741132246572,-100.86406883,0.00012497,2]
[355424127,1741132246581,-191.48598645,0.00012497,2]
[355424128,1741132246592,-308.51401355,0.00012497,2]
[355424129,1741132246601,-1046.44,0.00012497,2]
[355424130,1741132246611,-290.67479832,0.00012497,2]
[355424131,1741132246620,-507.1583117,0.00012497,2]
[355424132,1741132246630,-500.0,0.00012497,2]
[355424133,1741132246639,-1729.77,0.00012497,2]
[355424134,1741132246649,-502.90707833,0.00012497,2]
[355424135,1741132246658,-500.0,0.00012497,2]
[355424136,1741132246667,-1832.94,0.00012497,2]
[355424137,1741132246676,-500.0,0.00012497,2]
[355424138,1741132246686,-1153.02,0.00012497,2]
[355424139,1741132246695,-368.60876443,0.00012497,2]
[355424140,1741132246708,-131.39123557,0.00012497,2]
[355424141,1741132246717,-510.87610005,0.00012497,2]
[355424142,1741132246726,-43.83220288,0.00012497,2]
[355424143,1741132246756,-456.16779712,0.00012497,2]
[355424144,1741132246766,-657.55,0.00012497,2]
[355424145,1741132246775,-979.73,0.00012497,2]
[355424146,1741132246785,-500.0,0.00012497,2]
[355424147,1741132246795,-499.99470909,0.00012497,2]
[355424148,1741132246804,-500.0,0.00012497,2]
[355424149,1741132246814,-500.0,0.00012497,2]
[355424150,1741132246824,-616.99,0.00012497,2]
[355424151,1741132246834,-1455.62,0.00012497,2]
[355424152,1741132246846,-394.01688784,0.00012497,2]
[355424153,1741132246864,-500.0,0.00012497,2]
[355424154,1741132246874,-500.0,0.00012497,2]
[355424155,1741132246884,-2195.93,0.00012497,2]
[355424156,1741132246893,-500.0,0.00012497,2]
[355424157,1741132246903,-502.75791015,0.00012497,2]
[355424158,1741132246913,-241.81556236,0.00012497,2]
[355424159,1741132246923,-500.0,0.00012497,2]
[355424160,1741132246933,-500.0,0.00012497,2]
[355424161,1741132246942,-500.0,0.00012497,2]
[355424162,1741132246952,-500.0,0.00012497,2]
[355424163,1741132246961,-504.57506496,0.00012497,2]